bitfinex/quotes_SOLUSD_20260309
["timestamp","ask_amount","ask_price","bid_price","bid_amount"]
[1773027511363,2.91342095,83.449,83.42,0.1]
[1773027512756,2.91342095,83.449,83.42,11.91356152]
[1773027513372,2.94303771,83.458,83.422,0.29660541]
[1773027514771,11.98221838,83.457,83.423,11.98710187]
[1773027514974,2.94303771,83.456,83.423,11.98710187]
[1773027515875,2.94303771,83.455,83.423,11.98710187]
[1773027518372,2.94303771,83.453,83.42,11.91356152]
[1773027518577,2.94303771,83.449,83.42,0.1]
[1773027519893,2.94303771,83.439,83.42,0.1]
[1773027520609,11.81356152,83.43,83.4,0.1]
[1773027520883,2.94303771,83.429,83.4,0.1]
[1773027521971,2.94303771,83.429,83.401,11.9902639]
[1773027522758,11.98638346,83.428,83.4,12.33283957]
[1773027523075,2.94303771,83.427,83.4,23.90392719]
[1773027523682,2.94303771,83.427,83.4,23.9192327]
[1773027523862,2.94303771,83.427,83.4,0.1]
[1773027524178,2.94303771,83.427,83.401,11.9902639]
[1773027525183,2.94303771,83.425,83.4,0.1]
[1773027525681,2.94303771,83.409,83.38,0.1]
[1773027525868,2.94303771,83.399,83.38,0.1]
[1773027527186,2.94303771,83.389,83.36,12.09615801]
[1773027527990,2.94303771,83.389,83.36,0.1]
[1773027528496,2.94303771,83.379,83.36,0.1]
[1773027529084,2.94303771,83.379,83.35,0.1]
[1773027529085,2.94303771,83.367,83.35,0.1]
[1773027530484,2.94303771,83.367,83.34,0.1]
[1773027530485,2.94303771,83.359,83.34,0.1]
[1773027531106,2.94303771,83.359,83.332,7.37507847]
[1773027531407,2.94303771,83.377,83.34,11.84144371]
[1773027531900,2.94303771,83.377,83.333,12.54626067]
[1773027531901,2.94303771,83.369,83.333,0.54621267]
[1773027532085,2.94303771,83.359,83.332,7.37507847]
[1773027532281,2.94303771,83.359,83.332,5.37507847]
[1773027532883,11.84144371,83.37,83.333,1.30373182]
[1773027533098,41.97750005,83.378,83.341,1.30373182]
[1773027533707,11.84144371,83.36,83.332,5.37507847]
[1773027533902,11.84144371,83.34,83.304,1.40682882]
[1773027534091,0.28432314,83.359,83.295,12.00552254]
[1773027534092,11.84144371,83.33,83.295,12.00552254]
[1773027534601,11.84144371,83.33,83.296,1.41000155]
[1773027534907,14.78448142,83.33,83.296,1.41000155]
[1773027535614,12.00062403,83.329,83.297,12.00523428]
[1773027535904,12.00062403,83.329,83.298,1.41309977]
[1773027537305,2.94303771,83.328,83.298,1.41309977]
[1773027538506,12.00062403,83.329,83.301,1.42225042]
[1773027539408,2.94303771,83.338,83.301,1.4252412]
[1773027540106,2.94303771,83.329,83.292,1.4252412]
[1773027540305,12.00076804,83.328,83.3,11.84144371]
[1773027540505,2.94303771,83.34,83.296,1.42819701]
[1773027540704,11.84144371,83.33,83.29,11.94144371]
[1773027540907,2.94303771,83.329,83.29,23.94762433]
[1773027541108,2.94303771,83.319,83.29,0.1]
[1773027541415,2.94303771,83.319,83.29,11.94144371]
[1773027541711,2.94303771,83.319,83.29,25.37880287]
[1773027542012,2.94303771,83.319,83.29,11.94144371]
[1773027542198,2.94303771,83.319,83.291,12.00609909]
[1773027542403,2.94303771,83.319,83.293,12.00581081]
[1773027543517,2.85835673,83.318,83.29,11.94144371]
[1773027543700,2.85835673,83.318,83.29,0.1]
[1773027543896,11.84144371,83.31,83.29,0.1]
[1773027544101,2.85835673,83.309,83.29,0.1]
[1773027544297,12.0036491,83.308,83.29,0.1]
[1773027544897,2.85835673,83.312,83.29,0.1]
[1773027545204,41.8427974,83.33,83.29,0.1]
[1773027545205,12.00206435,83.319,83.291,1.44249919]
[1773027546907,11.76476435,83.319,83.291,1.44249919]
[1773027547108,2.85835673,83.318,83.291,1.44249919]
[1773027547911,2.85835673,83.318,83.3,11.84144371]
[1773027548156,3.03863062,83.329,83.293,1.45603442]
[1773027548400,3.03863062,83.337,83.31,11.84144371]
[1773027548701,3.03863062,83.329,83.291,12.00609909]
[1773027549028,3.03863062,83.327,83.29,11.94144371]
[1773027549707,3.03863062,83.327,83.29,4.52762688]
[1773027550233,3.03863062,83.327,83.291,12.00609909]
[1773027550709,4.42762688,83.32,83.29,0.1]
[1773027550916,3.03863062,83.319,83.29,0.1]
[1773027551306,3.03863062,83.309,83.29,0.1]
[1773027552420,3.03863062,83.299,83.262,1.45698614]
[1773027553309,3.03863062,83.297,83.262,1.45698614]
[1773027553507,3.03863062,83.289,83.262,1.45698614]
[1773027554416,3.03863062,83.289,83.261,12.01042059]
[1773027554608,12.00621351,83.291,83.262,1.45294127]
[1773027555216,3.03863062,83.297,83.262,1.73726441]
[1773027556015,3.03863062,83.297,83.262,1.45294127]
[1773027556626,3.03863062,83.295,83.262,1.45294127]
[1773027558226,3.03863062,83.295,83.263,1.4451464]
[1773027558424,3.03863062,83.299,83.256,12.01113322]
[1773027558631,3.03863062,83.289,83.257,1.4451464]
[1773027558803,42.01781554,83.298,83.25,0.1]
[1773027558804,4.42762688,83.28,83.25,0.1]
[1773027559133,3.03863062,83.279,83.25,0.1]
[1773027559426,4.42762688,83.27,83.25,0.1]
[1773027559820,4.42762688,83.27,83.219,3.69383402]
[1773027559821,3.03863062,83.259,83.214,1.44324278]
[1773027560019,3.03863062,83.249,83.216,1.44324278]
[1773027560220,3.69383402,83.293,83.215,12.01706423]
[1773027560221,4.42762688,83.27,83.223,1.44133317]
[1773027560514,4.42762688,83.27,83.223,1.58349474]
[1773027560515,7.4662575,83.27,83.223,1.58349474]
[1773027561023,3.69383402,83.295,83.241,1.72565631]
[1773027561024,3.03863062,83.279,83.241,1.72565631]
[1773027561230,3.03863062,83.283,83.241,1.72565631]
[1773027561926,4.42762688,83.28,83.241,1.72565631]
[1773027562224,3.03863062,83.279,83.241,1.72565631]
[1773027562607,3.03863062,83.269,83.241,1.44133317]
[1773027563009,3.03863062,83.259,83.225,1.43760674]
[1773027563225,4.42762688,83.28,83.225,1.43760674]
[1773027563226,3.03863062,83.276,83.231,1.43581211]
[1773027563431,3.03863062,83.276,83.241,1.43581211]
[1773027563639,12.00840588,83.275,83.241,1.43581211]
[1773027563808,3.03863062,83.274,83.241,1.43581211]
[1773027564231,3.03863062,83.259,83.225,12.01552122]
[1773027564530,3.03863062,83.249,83.22,1.43402974]
[1773027564834,3.03863062,83.249,83.216,1.43402974]
[1773027565015,3.03863062,83.248,83.217,12.01677541]
[1773027565216,3.03863062,83.248,83.22,5.85989991]
[1773027565724,3.03863062,83.248,83.221,1.43227303]
[1773027565925,3.03863062,83.258,83.221,1.43227303]
[1773027566324,3.03863062,83.265,83.231,1.4305414]
[1773027566719,3.03863062,83.274,83.241,1.4305414]
[1773027567317,3.03863062,83.259,83.221,1.71310469]
[1773027567526,3.03863062,83.259,83.23,4.42762688]
[1773027567914,3.03863062,83.259,83.221,1.57094312]
[1773027568127,3.03863062,83.259,83.215,12.01706423]
[1773027568309,3.03863062,83.259,83.215,13.44415013]
[1773027568730,3.03863062,83.259,83.221,1.4270859]
[1773027569228,3.03863062,83.257,83.223,1.42541971]
[1773027569614,3.03863062,83.257,83.22,4.42762688]
[1773027570434,3.03863062,83.257,83.221,1.4237681]
[1773027571334,3.03863062,83.255,83.221,1.4237681]
[1773027571730,3.03863062,83.255,83.222,12.01605344]
[1773027572237,3.03863062,83.255,83.221,1.4237681]
[1773027572736,3.03863062,83.255,83.22,4.42762688]
[1773027573333,4.42762688,83.28,83.217,12.01665411]
[1773027573334,2.97636438,83.278,83.241,1.41741586]
[1773027573527,2.97636438,83.278,83.234,1.41741586]
[1773027573831,2.97636438,83.269,83.231,12.01475411]
[1773027574423,2.97636438,83.269,83.23,4.42762688]
[1773027575024,12.0078291,83.279,83.219,12.01644746]
[1773027575025,2.97636438,83.259,83.22,4.42762688]
[1773027575333,12.01085781,83.258,83.22,4.42762688]
[1773027575543,3.49,84.529,83.105,23.94]
[1773027575544,2.97636438,83.269,83.24,5.84188641]
[1773027575837,2.97636438,83.267,83.232,1.41425953]
[1773027576039,2.97636438,83.267,83.23,4.42762688]
[1773027576741,2.97636438,83.267,83.224,1.41425953]
[1773027576941,2.97636438,83.259,83.22,4.42762688]
[1773027577943,2.97636438,83.249,83.21,4.42762688]
[1773027578649,2.97636438,83.249,83.204,12.01860582]
[1773027578831,2.97636438,83.249,83.202,1.40971975]
[1773027579033,2.97636438,83.239,83.2,4.42762688]
[1773027579228,2.97636438,83.239,83.201,12.0190863]
[1773027579752,2.97636438,83.237,83.196,1.40825322]
[1773027579927,2.97636438,83.237,83.201,1.40825322]
[1773027580346,2.97636438,83.237,83.21,4.42762688]
[1773027580553,2.97636438,83.237,83.202,1.40678756]
[1773027580747,2.97636438,83.237,83.21,4.42762688]
[1773027581631,2.97636438,83.237,83.2,4.42762688]
[1773027581845,2.97636438,83.235,83.202,1.40538145]
[1773027582049,2.97636438,83.246,83.211,1.40538145]
[1773027583030,2.97636438,83.246,83.22,5.83157318]
[1773027583228,2.97636438,83.266,83.24,4.42762688]
[1773027584053,2.97636438,83.264,83.231,1.40253157]
[1773027584754,2.97636438,83.259,83.22,4.42762688]
[1773027585545,2.97636438,83.249,83.21,4.4356596]
[1773027585948,2.97636438,83.247,83.21,4.4356596]
[1773027586645,2.97636438,83.239,83.2,4.4356596]
[1773027587225,2.97636438,83.239,83.168,4.82477569]
[1773027587226,4.4356596,83.22,83.173,0.2549462]
[1773027587440,2.97636438,83.219,83.173,0.2549462]
[1773027587632,2.97636438,83.209,83.173,0.2549462]
[1773027587952,2.97636438,83.207,83.173,0.2549462]
[1773027589433,2.97636438,83.207,83.18,11.89212631]
[1773027589737,12.01807518,83.208,83.173,0.2549462]
[1773027589738,2.97636438,83.199,83.173,0.2549462]
[1773027590034,2.97636438,83.197,83.173,0.2549462]
[1773027590435,12.01951969,83.198,83.18,11.89212631]
[1773027590641,11.89212631,83.22,83.18,11.89212631]
[1773027590642,2.97636438,83.213,83.18,11.89212631]
[1773027591242,2.97636438,83.199,83.173,1e-08]
[1773027591441,2.97636438,83.189,83.173,1e-08]
[1773027591641,2.97636438,83.189,83.15,11.89212631]
[1773027592055,2.97636438,83.189,83.143,13.4191702]
[1773027592256,2.97636438,83.187,83.15,11.89212631]
[1773027593173,2.97636438,83.187,83.16,11.89212631]
[1773027593450,2.97636438,83.187,83.131,0.28432314]
[1773027593451,11.89212631,83.2,83.17,11.89212631]
[1773027593653,48.0264365,83.288,83.17,11.89212631]
[1773027593654,2.97636438,83.195,83.17,11.89212631]
[1773027594234,12.0200976,83.194,83.17,11.89212631]
[1773027594859,2.97636438,83.193,83.17,11.89212631]
[1773027596859,2.97636438,83.229,83.181,1.38571619]
[1773027597160,2.97636438,83.209,83.17,11.89212631]
[1773027597461,2.97636438,83.209,83.18,11.89212631]
[1773027598547,2.97636438,83.218,83.19,11.89212631]
[1773027598761,2.97636438,83.226,83.2,11.89212631]
[1773027598961,2.97636438,83.234,83.2,11.89212631]
[1773027599144,2.97636438,83.219,83.171,1.38331015]
[1773027599464,2.97636438,83.219,83.18,11.89212631]
[1773027600344,11.89212631,83.21,83.18,11.89212631]
[1773027600550,2.97636438,83.218,83.19,11.89212631]
[1773027600742,12.01677541,83.217,83.191,12.02053106]
[1773027601068,2.97636438,83.216,83.19,11.89212631]
[1773027601562,2.97636438,83.216,83.18,23.91424701]
[1773027601869,2.97636438,83.216,83.19,11.89212631]
[1773027602046,2.97636438,83.216,83.18,23.91424701]
[1773027602250,2.97636438,83.216,83.18,11.89212631]
[1773027602464,2.97636438,83.209,83.17,11.89212631]
[1773027602968,2.88899137,83.207,83.17,11.89212631]
[1773027603145,2.88899137,83.189,83.15,11.89212631]
[1773027603458,102.15363906,83.208,83.141,12.02776007]
[1773027603459,2.88899137,83.179,83.141,12.02776007]
[1773027604374,2.88899137,83.177,83.15,11.89212631]
[1773027604750,2.88899137,83.189,83.16,11.89212631]
[1773027606460,11.89212631,83.19,83.142,1.37430182]
[1773027606461,2.88899137,83.187,83.15,11.89212631]
[1773027606849,2.76887137,83.187,83.151,12.02631357]
[1773027607268,2.76887137,83.187,83.15,11.89212631]
[1773027607564,2.76887137,83.187,83.15,4.44282152]
[1773027607766,4.44282152,83.18,83.14,4.54282152]
[1773027607961,42.07337596,83.188,83.14,0.1]
[1773027607962,4.44282152,83.17,83.14,0.1]
[1773027608183,4.44282152,83.17,83.13,4.44282152]
[1773027608760,3.69383402,83.185,83.128,19.46974832]
[1773027608761,2.84255115,83.159,83.128,7.44023457]
[1773027609553,2.84255115,83.159,83.129,12.02949632]
[1773027609770,2.84255115,83.159,83.13,4.44282152]
[1773027610450,12.02371075,83.169,83.15,4.44282152]
[1773027610657,2.84255115,83.173,83.141,1.58901546]
[1773027611670,2.84255115,83.169,83.133,12.02891751]
[1773027611852,2.84255115,83.169,83.133,13.6165871]
[1773027612052,2.84255115,83.169,83.133,1.58766959]
[1773027612469,2.84255115,83.169,83.14,4.44282152]
[1773027612979,2.84255115,83.167,83.13,4.44282152]
[1773027614684,2.84255115,83.149,83.128,7.44023457]
[1773027614864,2.84255115,83.147,83.128,7.44023457]
[1773027615180,2.84255115,83.147,83.11,4.44282152]
[1773027615777,2.84255115,83.147,83.11,11.91056857]
[1773027615955,42.09361619,83.148,83.11,11.91056857]
[1773027615956,2.84255115,83.139,83.11,11.91056857]
[1773027616162,2.84255115,83.157,83.13,11.91056857]
[1773027616376,12.02559045,83.156,83.13,13.49177345]
[1773027616556,12.02559045,83.156,83.14,11.91056857]
[1773027617075,12.02559045,83.156,83.13,11.91056857]
[1773027617272,2.84255115,83.155,83.13,11.91056857]
[1773027617450,12.02467874,83.163,83.14,11.91056857]
[1773027617656,12.02467874,83.163,83.136,1.57999117]
[1773027617877,12.02467874,83.163,83.14,11.91056857]
[1773027618385,2.84255115,83.162,83.127,1.57872317]
[1773027618562,2.84255115,83.159,83.12,11.91056857]
[1773027619163,2.84255115,83.157,83.12,11.91056857]
[1773027619456,44.93110546,83.158,83.13,11.91056857]
[1773027619667,2.84255115,83.157,83.13,11.91056857]
[1773027619869,2.84255115,83.157,83.14,11.91056857]
[1773027620074,2.84255115,83.157,83.13,11.91056857]
[1773027620455,2.84255115,83.167,83.14,11.91056857]
[1773027620650,2.84255115,83.177,83.15,11.91056857]
[1773027621556,2.84255115,83.175,83.14,11.91056857]
[1773027623772,42.08045783,83.174,83.14,11.91056857]
[1773027624072,2.84255115,83.173,83.14,11.91056857]
[1773027624271,2.84255115,83.169,83.123,1.57149948]
[1773027624472,2.84255115,83.169,83.14,11.91056857]
[1773027625056,2.84255115,83.183,83.15,11.91056857]
[1773027625458,2.84255115,83.169,83.13,11.91056857]
[1773027625873,2.84255115,83.167,83.13,23.93985228]
[1773027626258,2.84255115,83.172,83.141,1.57035318]
[1773027626557,2.84255115,83.183,83.16,11.91056857]
[1773027626759,2.84255115,83.183,83.151,1.56921863]
[1773027627268,2.84255115,83.183,83.16,11.91056857]
[1773027627858,12.02183164,83.182,83.16,11.91056857]
[1773027628173,2.84255115,83.192,83.161,12.02486742]
[1773027628485,2.84255115,83.192,83.162,1.56694875]
[1773027628678,2.84255115,83.192,83.161,12.02486742]
[1773027629875,2.84255115,83.19,83.161,12.02486742]
[1773027630074,2.84255115,83.189,83.15,11.91056857]
[1773027631082,2.84255115,83.19,83.161,1.5647922]
[1773027631266,2.84255115,83.19,83.16,11.91056857]
[1773027631466,11.91056857,83.19,83.15,11.91056857]
[1773027631783,2.84255115,83.189,83.151,1.56369573]
[1773027632286,2.84255115,83.187,83.152,1.56369573]
[1773027632961,2.84255115,83.187,83.16,11.91056857]
[1773027633780,2.84255115,83.187,83.152,1.56369573]
[1773027633971,2.84255115,83.187,83.152,1.56047116]
[1773027634482,2.79804211,83.185,83.153,12.02602431]
[1773027634684,2.79804211,83.185,83.151,1.55943239]
[1773027635068,2.79804211,83.185,83.15,11.91056857]
[1773027635710,2.79804211,83.179,83.128,1.55840774]
[1773027635989,2.79804211,83.179,83.141,1.55840774]
[1773027636482,2.79804211,83.177,83.142,12.0276154]
[1773027637480,2.79804211,83.177,83.142,13.58398975]
[1773027638185,2.79804211,83.177,83.138,12.02817033]
[1773027638380,2.79804211,83.169,83.138,12.02817033]
[1773027638574,2.79804211,83.169,83.14,11.91056857]
[1773027638771,12.0226401,83.177,83.141,1.55541949]
[1773027639087,2.79804211,83.176,83.148,1.55541949]
[1773027639268,2.79804211,83.176,83.139,1.55443781]
[1773027639468,2.79804211,83.176,83.141,1.55443781]
[1773027640263,2.79804211,83.176,83.15,11.91056857]
[1773027640469,14.81962328,83.184,83.153,1.55346403]
[1773027640670,30.04914727,83.198,83.161,1.55346403]
[1773027640671,2.79804211,83.196,83.161,1.55346403]
[1773027641083,2.79804211,83.193,83.16,11.91056857]
[1773027641881,2.79804211,83.193,83.161,1.55249853]
[1773027642686,2.79804211,83.192,83.162,12.02472283]
[1773027642869,2.79804211,83.192,83.163,1.55159398]
[1773027643069,2.79804211,83.189,83.15,11.91056857]
[1773027643266,12.02032112,83.193,83.143,1.55159398]
[1773027643267,2.79804211,83.179,83.143,1.55159398]
[1773027643576,2.79804211,83.179,83.151,1.55066541]
[1773027644596,2.79804211,83.179,83.15,11.91056857]
[1773027644777,2.79804211,83.177,83.143,12.0274611]
[1773027647395,2.79804211,83.175,83.139,12.0280403]
[1773027647888,2.79804211,83.169,83.139,12.0280403]
[1773027648280,2.79804211,83.169,83.14,11.90320794]
[1773027648792,2.79804211,83.169,83.117,1.54619331]
[1773027648986,2.79804211,83.159,83.131,1.54619331]
[1773027649179,2.79804211,83.159,83.123,1.54619331]
[1773027649376,2.79804211,83.157,83.124,12.03021991]
[1773027649590,2.79804211,83.157,83.125,1.54533233]
[1773027650581,2.79804211,83.157,83.124,12.03021991]
[1773027650780,2.79804211,83.157,83.13,11.90320794]
[1773027651785,2.79804211,83.155,83.125,1.54448511]
[1773027651993,2.79804211,83.155,83.126,12.02993046]
[1773027652291,2.79804211,83.155,83.127,1.54282007]
[1773027653804,2.79804211,83.153,83.128,12.02964103]
[1773027654799,12.02616894,83.152,83.129,1.54122208]
[1773027655097,14.82421105,83.152,83.129,1.54122208]
[1773027655304,2.79804211,83.151,83.122,1.54041072]
[1773027656701,2.79804211,83.151,83.123,42.10627624]
[1773027656902,2.79804211,83.151,83.13,11.90320794]
[1773027657610,2.79804211,83.16,83.131,1.53883036]
[1773027658185,2.79804211,83.159,83.123,12.03036464]
[1773027658406,2.79804211,83.159,83.124,1.53809668]
[1773027658610,2.79804211,83.159,83.131,1.53809668]
[1773027659011,2.79804211,83.159,83.13,11.90320794]
[1773027659012,2.79804211,83.159,83.133,1.53809668]
[1773027659191,12.02183164,83.182,83.151,1.53809668]
[1773027659504,12.02183164,83.182,83.16,11.90320794]
[1773027659702,12.02183164,83.182,83.16,4.44166029]
[1773027660004,2.79804211,83.181,83.15,4.44166029]
[1773027660188,2.79804211,83.179,83.141,1.53659411]
[1773027660390,2.79804211,83.179,83.151,1.53659411]
[1773027661011,2.79804211,83.177,83.15,4.44166029]
[1773027661200,2.79804211,83.177,83.148,12.0266304]
[1773027661402,2.79804211,83.177,83.141,12.02776007]
[1773027661607,2.79804211,83.177,83.15,5.97753313]
[1773027661907,2.79804211,83.177,83.15,1.53587284]
[1773027662104,2.79804211,83.177,83.151,1.53587284]
[1773027662411,12.02174292,83.183,83.151,1.53587284]
[1773027662412,2.79804211,83.182,83.151,1.53587284]
[1773027662620,14.81886217,83.189,83.151,1.53587284]
[1773027663122,3.02946088,83.188,83.153,1.53435756]
[1773027663904,3.02946088,83.188,83.152,12.02616894]
[1773027664609,3.02946088,83.188,83.153,1.53288318]
[1773027665896,3.02946088,83.186,83.154,12.02587969]
[1773027666299,3.02946088,83.179,83.154,12.02587969]
[1773027666596,3.02946088,83.179,83.142,12.0276154]
[1773027667417,3.02946088,83.179,83.143,1.53069055]
[1773027668116,2.79113955,83.177,83.144,12.02732608]
[1773027668411,2.79113955,83.177,83.145,1.52929032]
[1773027670403,2.79113955,83.175,83.146,12.02703677]
[1773027670727,2.79113955,83.175,83.147,1.52789328]
[1773027671609,2.79113955,83.175,83.148,12.02674748]
[1773027671920,2.79113955,83.173,83.148,12.02674748]
[1773027672218,2.79113955,83.173,83.149,1.52339997]
[1773027673904,2.79113955,83.173,83.15,12.0264582]
[1773027674524,2.79113955,83.173,83.15,13.5367067]
[1773027675222,2.79113955,83.188,83.151,1.5102485]
[1773027675410,2.79113955,83.196,83.161,1.50594605]
[1773027675611,4.44166029,83.19,83.161,1.50594605]
[1773027675806,2.79113955,83.189,83.161,1.50594605]
[1773027676203,2.79113955,83.187,83.15,12.02644189]
[1773027676422,2.79113955,83.18,83.151,1.50171078]
[1773027678504,2.79113955,83.187,83.153,1.49336892]
[1773027680318,2.79113955,83.185,83.155,1.48923456]
[1773027682116,2.79113955,83.185,83.154,12.02587969]
[1773027682438,2.79113955,83.183,83.155,1.47716505]
[1773027684532,2.79113955,83.183,83.13,60.14616076]
[1773027684533,2.95407307,83.202,83.17,4.44166029]
[1773027684741,2.95407307,83.209,83.171,1.46550701]
[1773027685223,2.95407307,83.209,83.156,42.08956659]
[1773027685224,2.95407307,83.209,83.181,1.46550701]
[1773027685620,2.95407307,83.209,83.172,1.46172203]
[1773027685826,2.95407307,83.199,83.164,1.46172203]
[1773027686823,2.95407307,83.197,83.165,12.02428906]
[1773027687417,2.95407307,83.189,83.165,12.02428906]
[1773027687626,2.95407307,83.179,83.131,1.45428534]
[1773027687823,2.95407307,83.169,83.131,1.45428534]
[1773027688231,2.95407307,83.178,83.141,1.45064507]
[1773027688416,2.95407307,83.178,83.151,1.45064507]
[1773027688916,2.95407307,83.178,83.15,4.44166029]
[1773027688917,2.95407307,83.178,83.152,13.47681401]
[1773027689112,2.95407307,83.176,83.147,12.0268104]
[1773027689828,2.95407307,83.176,83.148,1.44704515]
[1773027690030,2.95407307,83.176,83.142,13.47458044]
[1773027690421,2.95407307,83.176,83.143,1.44348859]
[1773027692038,12.0228434,83.175,83.14,4.44166029]
[1773027692240,12.0228434,83.175,83.137,12.02823734]
[1773027692241,2.95407307,83.174,83.137,12.02823734]
[1773027692737,2.95407307,83.174,83.138,1.43649441]
[1773027693044,2.95407307,83.174,83.141,1.43305863]
[1773027696423,2.91013736,83.189,83.151,1.41966612]
[1773027698745,2.91013736,83.187,83.151,1.41966612]
[1773027699926,2.91013736,83.187,83.142,30.06903851]
[1773027699927,2.91013736,83.187,83.153,1.4100734]
[1773027700423,12.01937523,83.199,83.153,1.4100734]
[1773027700624,2.91013736,83.198,83.173,1.40694668]
[1773027700824,2.91013736,83.205,83.173,1.40694668]
[1773027701044,12.01793075,83.209,83.181,1.40694668]
[1773027701260,2.91013736,83.22,83.191,1.40388582]
[1773027701945,2.91013736,83.22,83.181,1.40388582]
[1773027702158,2.91013736,83.209,83.172,12.02327706]
[1773027702845,2.91013736,83.207,83.17,4.44166029]
[1773027703040,2.91013736,83.207,83.167,13.42486973]
[1773027703225,2.91013736,83.199,83.167,12.0239999]
[1773027703655,2.91013736,83.199,83.17,4.44166029]
[1773027703828,2.91013736,83.199,83.171,1.39786152]
[1773027704942,2.91013736,83.197,83.167,12.0239999]
[1773027705343,2.91013736,83.197,83.17,4.44166029]
[1773027706354,2.91013736,83.197,83.162,12.02459569]
[1773027706733,2.91013736,83.197,83.17,4.44166029]
[1773027707254,2.91013736,83.212,83.181,1.38613355]
[1773027707466,2.91013736,83.212,83.18,4.44166029]
[1773027707657,2.91013736,83.212,83.174,1.38613355]
[1773027707837,2.91013736,83.209,83.171,12.02342162]
[1773027708354,2.91013736,83.209,83.172,1.38613355]
[1773027708652,2.91013736,83.209,83.181,1.38328786]
[1773027709248,2.91013736,83.209,83.182,12.02183164]
[1773027709447,2.91013736,83.208,83.177,12.02245829]
[1773027709656,2.91013736,83.208,83.161,1.38046365]
[1773027710056,2.91013736,83.208,83.171,1.38046365]
[1773027710556,2.91013736,83.208,83.17,4.44038965]
[1773027710764,2.91013736,83.208,83.162,1.37768016]
[1773027711256,2.91013736,83.188,83.161,1.37496702]
[1773027711458,2.91013736,83.198,83.154,1.37496702]
[1773027712058,2.91013736,83.189,83.151,12.02631357]
[1773027713759,2.91013736,83.187,83.14,34.51000263]
[1773027714060,2.91013736,83.169,83.134,1.36952848]
[1773027716164,2.91013736,83.167,83.135,12.02862813]
[1773027716342,2.91013736,83.167,83.136,1.36170452]
[1773027716548,2.91013736,83.167,83.135,12.02862813]
[1773027716766,2.91013736,83.167,83.135,13.39033265]
[1773027717461,2.91013736,83.167,83.136,1.35913575]
[1773027719170,2.91013736,83.165,83.137,13.3849329]
[1773027720260,12.02443364,83.164,83.137,13.3849329]
[1773027720462,2.91013736,83.163,83.132,12.02895094]
[1773027720661,2.91013736,83.169,83.141,1.35161458]
[1773027721064,2.91013736,83.169,83.132,12.02895094]
[1773027721371,2.91013736,83.169,83.133,1.34916345]
[1773027722675,2.91013736,83.167,83.134,12.02877282]
[1773027723071,2.91013736,83.167,83.13,4.44038965]
[1773027723368,2.83780102,83.149,83.112,12.03195687]
[1773027723769,2.83780102,83.149,83.106,1.34199869]
[1773027723952,2.83780102,83.149,83.102,1.34199869]
[1773027724671,2.83780102,83.147,83.111,1.33970706]
[1773027724967,2.83780102,83.147,83.103,12.03325993]
[1773027724968,2.83780102,83.153,83.121,1.33970706]
[1773027726274,2.83780102,83.139,83.104,1.33737258]
[1773027726576,2.83780102,83.137,83.105,12.03297033]
[1773027727975,2.83780102,83.137,83.106,1.33064015]
[1773027728174,2.83780102,83.137,83.105,12.03297033]
[1773027728361,2.83780102,83.137,83.1,116.47403073]
[1773027728672,12.02848344,83.136,83.1,116.47403073]
[1773027728974,2.66953791,83.135,83.1,117.80244983]
[1773027729964,2.66953791,83.129,83.1,100.0]
[1773027730462,2.66953791,83.129,83.1,104.44038965]
[1773027730662,2.66953791,83.129,83.102,1.32409635]
[1773027730863,2.66953791,83.129,83.103,12.03325993]
[1773027731576,12.02944039,83.13,83.1,100.0]
[1773027731577,4.44038965,83.13,83.1,100.0]
[1773027731774,2.66953791,83.129,83.1,104.44038965]
[1773027731959,2.66953791,83.135,83.11,4.44038965]
[1773027732160,2.66953791,83.142,83.111,1.32015927]
[1773027732362,2.66953791,83.157,83.131,1.31623142]
[1773027732576,4.44038965,83.17,83.131,1.31623142]
[1773027732577,2.66953791,83.167,83.131,1.31623142]
[1773027732785,2.66953791,83.165,83.131,1.31623142]
[1773027733081,2.66953791,83.165,83.13,4.44038965]
[1773027733273,2.66953791,83.149,83.102,1.31236302]
[1773027733481,0.28432314,83.164,83.102,1.31236302]
[1773027733482,2.66953791,83.139,83.102,1.31236302]
[1773027734082,2.66953791,83.139,83.11,4.44038965]
[1773027734379,2.66953791,83.139,83.111,1.30852927]
[1773027734874,2.66953791,83.139,83.112,12.03195687]
[1773027735175,2.66953791,83.137,83.11,4.44038965]
[1773027735374,2.66953791,83.137,83.111,12.03210164]
[1773027735679,2.66953791,83.137,83.112,1.3047438]
[1773027735984,2.66953791,83.152,83.121,1.3047438]
[1773027736364,2.66953791,83.152,83.13,5.74138586]
[1773027736565,2.66953791,83.158,83.131,1.30099621]
[1773027737080,2.66953791,83.158,83.132,12.02906221]
[1773027737376,2.66953791,83.158,83.14,4.44038965]
[1773027737977,2.66953791,83.176,83.15,4.44038965]
[1773027738177,4.44038965,83.24,83.16,4.44038965]
[1773027738178,2.66953791,83.186,83.16,4.44038965]
[1773027738573,2.66953791,83.186,83.17,4.44038965]
[1773027738977,2.66953791,83.186,83.162,12.02472283]
[1773027739274,2.66953791,83.186,83.17,4.44038965]
[1773027739472,2.66953791,83.186,83.161,1.29360551]
[1773027739672,2.66953791,83.184,83.16,4.44038965]